bitfinex/quotes_BTCUSD_20230403
["timestamp","ask_amount","ask_price","bid_price","bid_amount"]
[1680534648993,0.12537527,28021.0,28020.0,0.053532]
[1680534649268,0.12637527,28021.0,28020.0,0.045844]
[1680534649833,0.12537527,28021.0,28020.0,0.017844]
[1680534650099,0.12637527,28021.0,28020.0,0.028]
[1680534650352,0.12637527,28021.0,28019.0,0.005]
[1680534650353,0.12537527,28021.0,28019.0,0.005]
[1680534650745,0.12637527,28021.0,28020.0,0.028]
[1680534650748,0.05197527,28021.0,28020.0,0.028]
[1680534650988,0.12637527,28021.0,28020.0,0.028]
[1680534651607,0.12537527,28021.0,28019.0,0.005]
[1680534651807,0.0739,28020.0,28019.0,0.005]
[1680534652396,0.05197527,28021.0,28020.0,0.028]
[1680534652872,0.14443572,28021.0,28019.0,0.005]
[1680534653095,0.001,28020.0,28019.0,0.03]
[1680534653341,0.05097527,28021.0,28019.0,0.005]
[1680534653572,0.05197527,28021.0,28020.0,0.012]
[1680534654503,0.05097527,28021.0,28019.0,0.022844]
[1680534654734,0.001,28020.0,28019.0,0.024]
[1680534654967,0.05097527,28021.0,28019.0,0.005]
[1680534655198,0.05197527,28021.0,28020.0,0.012]
[1680534655435,0.05097527,28021.0,28019.0,0.022845]
[1680534655669,0.05097527,28021.0,28019.0,0.041845]
[1680534655670,0.001,28020.0,28019.0,0.041845]
[1680534655870,0.001,28020.0,28019.0,0.022845]
[1680534656121,0.05097527,28021.0,28020.0,0.012]
[1680534656347,0.11220272,28021.0,28020.0,0.012]
[1680534656569,0.11120272,28021.0,28019.0,0.022845]
[1680534657034,0.031611,28020.0,28019.0,0.022845]
[1680534657229,0.11120272,28021.0,28019.0,0.022845]
[1680534657494,0.11120272,28021.0,28019.0,0.041845]
[1680534657691,0.001,28020.0,28019.0,0.041845]
[1680534658440,0.11120272,28021.0,28019.0,0.022845]
[1680534658675,0.11220272,28021.0,28020.0,0.00010118]
[1680534658869,0.05097527,28021.0,28020.0,0.00010118]
[1680534659153,0.10267527,28021.0,28020.0,0.00010118]
[1680534659376,0.13525227,28021.0,28020.0,0.00010118]
[1680534659632,0.13625227,28021.0,28020.0,0.00010118]
[1680534659853,0.19984742,28021.0,28020.0,0.00010118]
[1680534660535,0.19884742,28021.0,28020.0,0.00510118]
[1680534661257,0.19884742,28021.0,28020.0,0.00010118]
[1680534661258,0.08355227,28021.0,28020.0,0.00010118]
[1680534661494,0.08355227,28021.0,28020.0,0.05863318]
[1680534661495,0.05097527,28021.0,28020.0,0.05863318]
[1680534661739,0.05097527,28021.0,28020.0,0.079501]
[1680534661963,0.05097527,28021.0,28020.0,0.053532]
[1680534662219,0.05197527,28021.0,28020.0,0.081049]
[1680534662449,0.05097527,28021.0,28020.0,0.081049]
[1680534662690,0.05097527,28021.0,28020.0,0.053532]
[1680534662916,0.05097527,28021.0,28020.0,0.053712]
[1680534663156,0.05097527,28021.0,28019.0,0.17685876]
[1680534663157,0.05097527,28021.0,28019.0,0.00518]
[1680534663397,0.05097527,28021.0,28019.0,0.005]
[1680534663627,0.0517,28023.0,28019.0,0.005]
[1680534663854,0.033054,28022.0,28020.0,0.005]
[1680534664085,0.033054,28022.0,28019.0,0.005]
[1680534664329,0.001,28021.0,28019.0,0.03]
[1680534664565,0.05243467,28021.0,28019.0,0.005]
[1680534664863,0.031836,28020.0,28019.0,0.005]
[1680534665093,0.04036307,28020.0,28019.0,0.005]
[1680534665335,0.73337912,28020.0,28019.0,0.01]
[1680534665562,0.73337912,28020.0,28019.0,0.005]
[1680534665563,1.13298231,28020.0,28019.0,0.005]
[1680534667024,1.14098231,28020.0,28019.0,0.006]
[1680534668742,1.13245524,28020.0,28019.0,0.006]
[1680534668961,1.08048324,28020.0,28019.0,0.006]
[1680534669727,1.13263069,28020.0,28019.0,0.00078526]
[1680534670226,1.10116669,28020.0,28019.0,0.00078526]
[1680534670680,1.13405369,28020.0,28017.0,0.017845]
[1680534670904,0.09951924,28018.0,28017.0,0.017845]
[1680534671136,1.12021082,28020.0,28017.0,0.017845]
[1680534671366,0.09951924,28018.0,28017.0,0.017845]
[1680534671589,0.15140772,28018.0,28017.0,0.017845]
[1680534671820,0.4,28017.0,28014.0,0.00018]
[1680534672051,0.4,28017.0,28014.0,0.017847]
[1680534672052,0.54189681,28017.0,28014.0,0.017847]
[1680534672275,0.46031077,28017.0,28014.0,0.017847]
[1680534672536,0.46031077,28017.0,28014.0,0.018027]
[1680534672997,0.4,28017.0,28014.0,0.017847]
[1680534673225,0.401,28017.0,28014.0,0.036847]
[1680534673462,0.401,28017.0,28014.0,0.037027]
[1680534677363,0.401,28017.0,28015.0,0.025652]
[1680534677600,0.401,28017.0,28014.0,0.037027]
[1680534677601,0.401,28017.0,28016.0,0.017846]
[1680534678500,0.4,28017.0,28016.0,0.017846]
[1680534678945,0.4,28017.0,28016.0,0.022846]
[1680534679173,0.4,28017.0,28016.0,0.005]
[1680534682126,0.4,28017.0,28016.0,0.005]
[1680534684408,0.4517,28017.0,28016.0,0.005]
[1680534684610,0.4517,28017.0,28016.0,0.00489022]
[1680534685287,0.483976,28017.0,28016.0,0.00489022]
[1680534686678,0.483976,28017.0,28016.0,0.00469079]
[1680534686906,0.54234352,28017.0,28016.0,0.00469079]
[1680534687125,0.51006752,28017.0,28016.0,0.00469079]
[1680534687340,0.4517,28017.0,28016.0,0.00469079]
[1680534687559,0.4517,28017.0,28014.0,0.017847]
[1680534687853,0.4597,28017.0,28016.0,0.001]
[1680534688084,0.484257,28017.0,28014.0,0.017847]
[1680534688304,0.4607,28017.0,28016.0,0.001]
[1680534688521,0.4607,28017.0,28016.0,0.00080057]
[1680534688954,0.491935,28017.0,28016.0,0.00080057]
[1680534689723,0.491935,28017.0,28016.0,0.00060114]
[1680534690233,0.55109842,28017.0,28016.0,0.00060114]
[1680534691580,0.60217091,28017.0,28013.0,0.11832876]
[1680534691810,0.4,28014.0,28013.0,0.10048076]
[1680534692084,0.433201,28014.0,28013.0,0.10066076]
[1680534692323,0.4,28014.0,28013.0,0.10066076]
[1680534692561,0.45104133,28014.0,28013.0,0.10066076]
[1680534692775,0.49619933,28014.0,28013.0,0.10566076]
[1680534693212,0.49619933,28014.0,28013.0,0.00518]
[1680534693426,0.49619933,28014.0,28013.0,0.005]
[1680534693867,0.52700133,28014.0,28013.0,0.0035]
[1680534694346,0.49619933,28014.0,28013.0,0.0035]
[1680534694586,0.52827833,28014.0,28013.0,0.0035]
[1680534695741,0.49637933,28014.0,28013.0,0.0035]
[1680534695956,0.52878733,28014.0,28013.0,0.0035]
[1680534696931,0.52878733,28014.0,28012.0,0.02109274]
[1680534697132,0.09405366,28013.0,28012.0,0.02109274]
[1680534697333,0.09423366,28013.0,28012.0,0.02109274]
[1680534697699,0.11471066,28013.0,28012.0,0.02109274]
[1680534697923,0.14948766,28013.0,28012.0,0.02109274]
[1680534698855,0.15048766,28013.0,28012.0,0.02109274]
[1680534699514,0.19947708,28013.0,28012.0,0.02109274]
[1680534700155,0.19835708,28013.0,28012.0,0.01439274]
[1680534700376,0.20629708,28013.0,28012.0,0.01539274]
[1680534700591,0.21343608,28013.0,28012.0,0.01539274]
[1680534701480,0.63131884,28013.0,28012.0,0.01539274]
[1680534703015,0.93149884,28013.0,28012.0,0.01539274]
[1680534703875,0.93131884,28013.0,28012.0,0.01039274]
[1680534704311,0.52417984,28013.0,28012.0,0.01039274]
[1680534704524,0.44346642,28013.0,28012.0,0.01039274]
[1680534705178,0.44322826,28013.0,28012.0,0.01039274]
[1680534706100,0.45036726,28013.0,28012.0,0.01039274]
[1680534706555,0.45036726,28013.0,28012.0,0.00551662]
[1680534706779,0.65872571,28013.0,28012.0,0.00551662]
[1680534707041,0.60726387,28013.0,28012.0,0.00551662]
[1680534707265,0.65866387,28013.0,28012.0,0.00551662]
[1680534707494,0.65866387,28013.0,28012.0,0.00065791]
[1680534708404,1.05866387,28013.0,28012.0,0.00065791]
[1680534708641,0.13766224,28012.0,28011.0,0.0189]
[1680534708872,0.69076485,28012.0,28011.0,0.0189]
[1680534709100,0.69076485,28012.0,28011.0,0.01873256]
[1680534709548,0.73407507,28012.0,28011.0,0.01371807]
[1680534710009,0.73607507,28012.0,28011.0,0.01371807]
[1680534710679,0.73577507,28012.0,28011.0,0.0087425]
[1680534710899,0.73377507,28012.0,28011.0,0.0087425]
[1680534711591,0.73377507,28012.0,28011.0,0.00380149]
[1680534711823,0.75277507,28012.0,28011.0,0.00580149]
[1680534712055,0.73377507,28012.0,28011.0,0.00380149]
[1680534712307,0.75277507,28012.0,28011.0,0.00580149]
[1680534712546,0.92413507,28012.0,28011.0,0.00089472]
[1680534712760,1.30533507,28012.0,28011.0,0.00089472]
[1680534712988,1.32321783,28012.0,28011.0,0.00089472]
[1680534713655,0.437602,28011.0,28010.0,0.0209]
[1680534713893,1.07203343,28011.0,28010.0,0.0209]
[1680534714571,1.11404721,28011.0,28010.0,0.01623136]
[1680534714789,1.13504721,28011.0,28010.0,0.01723136]
[1680534715523,1.30640721,28011.0,28010.0,0.01259787]
[1680534715732,1.13504721,28011.0,28010.0,0.01259787]
[1680534716165,1.30640721,28011.0,28010.0,0.01259787]
[1680534716388,1.32428997,28011.0,28010.0,0.01259787]
[1680534716610,1.32428997,28011.0,28010.0,0.00799615]
[1680534716823,1.15292997,28011.0,28010.0,0.00799615]
[1680534717072,1.32428997,28011.0,28010.0,0.00799615]
[1680534717529,1.32428997,28011.0,28010.0,0.00341435]
[1680534717763,1.15292997,28011.0,28010.0,0.00341435]
[1680534717978,1.32428997,28011.0,28010.0,0.00341435]
[1680534718202,1.92562997,28011.0,28010.0,0.00341435]
[1680534718492,0.8,28010.0,28009.0,0.0209]
[1680534718707,1.86217634,28010.0,28009.0,0.0209]
[1680534718936,2.0514791,28010.0,28009.0,0.01713001]
[1680534719163,2.2299891,28010.0,28009.0,0.01713001]
[1680534719395,2.2299891,28010.0,28005.0,0.0209]
[1680534719396,1.65312124,28006.0,28005.0,0.0136138]
[1680534719621,1.91845976,28006.0,28005.0,0.0130138]
[1680534719840,2.23634252,28006.0,28005.0,0.0130138]
[1680534720304,1.021001,28006.0,28005.0,0.0130138]
[1680534720522,0.83169824,28006.0,28005.0,0.0130138]
[1680534721216,0.85369824,28006.0,28005.0,0.0140138]
[1680534721434,0.86083924,28006.0,28005.0,0.0140138]
[1680534721666,0.85369824,28006.0,28005.0,0.01381437]
[1680534722356,1.00210616,28006.0,28005.0,0.01381437]
[1680534722800,1.04730577,28006.0,28005.0,0.00909498]
[1680534723541,1.10584677,28006.0,28005.0,0.00439601]
[1680534723785,1.28576677,28006.0,28005.0,0.00439601]
[1680534723998,1.53222953,28006.0,28005.0,0.00439601]
[1680534724219,1.70364953,28006.0,28005.0,0.00439601]
[1680534724657,2.80364953,28006.0,28004.0,0.0209]
[1680534724879,0.60112315,28005.0,28004.0,0.0209]
[1680534725105,0.77968415,28005.0,28004.0,0.0209]
[1680534725332,0.79756691,28005.0,28004.0,0.0209]
[1680534725551,0.58848576,28005.0,28004.0,0.0209]
[1680534725780,0.44136632,28005.0,28004.0,0.0162585]
[1680534726462,0.44850732,28005.0,28004.0,0.0162585]
[1680534726702,0.44850732,28005.0,28004.0,0.0116528]
[1680534726930,0.46236632,28005.0,28004.0,0.0126528]
[1680534727175,0.09278356,28005.0,28004.0,0.11313356]
[1680534727413,0.09278356,28005.0,28004.0,0.21584756]
[1680534727414,0.06094156,28005.0,28004.0,0.21584756]
[1680534727646,0.06094156,28005.0,28004.0,0.24169213]
[1680534727883,0.06094156,28005.0,28004.0,0.43687213]
[1680534728606,6e-05,28008.0,28007.0,0.10048076]
[1680534728847,0.40012,28009.0,28007.0,0.10048076]
[1680534728848,0.40018,28009.0,28007.0,0.33721676]
[1680534729112,0.40018,28009.0,28008.0,0.110057]
[1680534729346,0.40018,28009.0,28008.0,0.527909]
[1680534729804,0.40118,28009.0,28008.0,0.527909]
[1680534730041,0.40018,28009.0,28008.0,0.527909]
[1680534730272,0.40118,28009.0,28008.0,0.555909]
[1680534730521,0.40018,28009.0,28008.0,0.527909]
[1680534730994,0.40118,28009.0,28008.0,0.555909]
[1680534731230,0.40018,28009.0,28008.0,0.527909]
[1680534732172,0.40118,28009.0,28008.0,0.555909]
[1680534732389,0.40018,28009.0,28008.0,0.527909]
[1680534732607,0.40118,28009.0,28008.0,0.555909]
[1680534732859,0.40018,28009.0,28008.0,0.443509]
[1680534733100,0.441198,28009.0,28008.0,0.471509]
[1680534733328,0.440198,28009.0,28008.0,0.443509]
[1680534733763,0.40118,28009.0,28008.0,0.471689]
[1680534734697,0.40118,28009.0,28008.0,0.471509]
[1680534734914,0.40118,28009.0,28008.0,0.57198976]
[1680534735571,0.40118,28009.0,28008.0,0.17198976]
[1680534735795,0.40118,28009.0,28008.0,0.071509]
[1680534736025,0.441118,28009.0,28008.0,0.045852]
[1680534736254,0.441118,28009.0,28008.0,0.12848076]
[1680534736698,0.441298,28009.0,28008.0,0.12848076]
[1680534736931,0.440298,28009.0,28008.0,0.10048076]
[1680534737610,0.48108589,28009.0,28008.0,0.10048076]
[1680534738089,0.48208589,28009.0,28008.0,0.12148076]
[1680534738322,0.48108589,28009.0,28008.0,0.10048076]
[1680534738555,0.48208589,28009.0,28008.0,0.10848076]
[1680534738785,0.48108589,28009.0,28008.0,0.10048076]
[1680534739020,0.51342389,28009.0,28008.0,0.10848076]
[1680534739248,0.51242389,28009.0,28008.0,0.10048076]
[1680534739475,0.51342389,28009.0,28008.0,0.10848076]
[1680534739704,0.51242389,28009.0,28008.0,0.10048076]
[1680534739935,0.48130589,28009.0,28008.0,0.10148076]
[1680534740859,0.47230589,28009.0,28008.0,0.10048076]
[1680534741519,0.47230589,28009.0,28008.0,0.10148076]
[1680534741981,0.48130589,28009.0,28008.0,0.10148076]
[1680534741995,0.4,28002.0,28001.0,0.12138076]
[1680534742217,0.4,28002.0,28001.0,0.0209]
[1680534742218,0.87979381,28002.0,28001.0,0.0209]
[1680534742451,0.87265181,28002.0,28001.0,0.0209]
[1680534742667,0.74863776,28002.0,28001.0,0.0209]
[1680534742890,0.83933766,28002.0,28001.0,0.0209]
[1680534743368,0.8214549,28002.0,28001.0,0.0209]
[1680534743820,0.8821549,28002.0,28001.0,0.0229]
[1680534744055,0.8214549,28002.0,28001.0,0.0209]
[1680534744264,0.8304549,28002.0,28001.0,0.0229]
[1680534744536,0.8214549,28002.0,28001.0,0.0209]
[1680534744817,0.8214549,28002.0,28001.0,0.0229]
[1680534744818,0.8304549,28002.0,28001.0,0.0229]
[1680534745077,0.8285969,28002.0,28001.0,0.0209]
[1680534745341,0.8375969,28002.0,28001.0,0.0229]
[1680534745604,0.8285969,28002.0,28001.0,0.0209]
[1680534745900,0.8375969,28002.0,28001.0,0.0229]
[1680534746660,1.0000169,28002.0,28001.0,0.0209]
[1680534746958,0.8285969,28002.0,28001.0,0.0229]
[1680534747191,0.8285969,28002.0,28001.0,0.0209]
[1680534747445,0.8375969,28002.0,28001.0,0.0229]
[1680534747969,0.8285969,28002.0,28001.0,0.0209]
[1680534748429,0.8375969,28002.0,28001.0,0.0229]
[1680534749847,0.8375969,28002.0,27992.0,0.0209]
[1680534749848,0.4,27994.0,27992.0,0.0209]
[1680534750093,0.4,27994.0,27992.0,0.01410628]
[1680534750094,0.24654781,27993.0,27992.0,0.01410628]
[1680534750331,0.73591057,27993.0,27992.0,0.01134516]
[1680534750549,0.96039657,27993.0,27992.0,0.01134516]
[1680534750773,0.81855976,27993.0,27992.0,0.01134516]
[1680534751009,0.81849976,27993.0,27992.0,0.01134516]
[1680534751248,0.84567976,27993.0,27992.0,0.01134516]
[1680534751486,0.4,27989.0,27988.0,66.31293817]
[1680534751708,0.53023,27989.0,27988.0,66.31293817]
[1680534751929,0.54811276,27989.0,27988.0,66.31293817]
[1680534752225,0.99000957,27989.0,27988.0,66.31293817]
[1680534752443,0.84811276,27989.0,27988.0,66.31293817]
[1680534752666,0.74956776,27989.0,27988.0,66.31293817]
[1680534752888,0.76583,27989.0,27988.0,66.31293817]
[1680534753115,0.758685,27989.0,27988.0,66.31293817]
[1680534753626,0.731685,27989.0,27988.0,66.31293817]
[1680534753847,0.76583,27989.0,27988.0,66.31293817]
[1680534754086,0.820601,27989.0,27988.0,66.31293817]
[1680534754327,0.899301,27989.0,27988.0,66.31293817]
[1680534755479,0.925001,27989.0,27988.0,66.31293817]
[1680534755954,0.898001,27989.0,27988.0,66.31293817]
[1680534756189,0.540456,27989.0,27988.0,66.31293817]
[1680534756419,0.513456,27989.0,27988.0,66.31293817]
[1680534756880,0.540456,27989.0,27988.0,66.31293817]
[1680534757105,0.458685,27989.0,27988.0,66.31293817]
[1680534759248,0.536285,27989.0,27988.0,66.31293817]
[1680534759483,0.54343,27989.0,27988.0,66.31293817]
[1680534760160,0.51643,27989.0,27988.0,66.31293817]
[1680534760393,0.54343,27989.0,27988.0,66.31293817]
[1680534760620,0.513046,27989.0,27988.0,66.31293817]
[1680534761330,0.458685,27989.0,27988.0,66.31293817]
[1680534761558,0.431685,27989.0,27988.0,66.31293817]
[1680534761779,0.458685,27989.0,27988.0,66.31293817]
[1680534763160,0.427,27989.0,27988.0,66.31293817]
[1680534763403,0.427,27989.0,27988.0,66.33080217]
[1680534763660,0.4,27998.0,27995.0,0.2]
[1680534763915,0.40018,27998.0,27997.0,0.09782076]
[1680534764383,0.40018,27998.0,27997.0,0.11567976]
[1680534764676,0.40018,27998.0,27997.0,0.09782076]
[1680534765002,0.48040769,27998.0,27997.0,0.08977999]
[1680534765150,0.48040769,27998.0,27997.0,0.08995999]
[1680534765391,0.48040769,27998.0,27997.0,0.10781899]
[1680534765624,0.48040769,27998.0,27997.0,0.08281963]
[1680534765882,0.52846646,27998.0,27997.0,0.08181963]
[1680534766121,0.56079346,27998.0,27997.0,0.08281963]
[1680534766359,0.56079346,27998.0,27997.0,0.08181963]
[1680534766607,0.56079346,27998.0,27997.0,0.07373944]
[1680534766838,0.16079346,27998.0,27997.0,0.07373944]
[1680534767061,0.11273469,27998.0,27997.0,0.07373944]
[1680534767548,0.11273469,27998.0,27997.0,0.07473944]
[1680534767781,0.11273469,27998.0,27997.0,0.06593948]
[1680534768023,0.11273469,27998.0,27993.0,0.00018]
[1680534768263,0.11273469,27998.0,27991.0,0.4846]
[1680534768264,0.60975069,27998.0,27997.0,0.002]
[1680534768495,0.64199369,27998.0,27997.0,0.002]
[1680534768731,1.01031369,27998.0,27992.0,0.00018]
[1680534768958,0.409972,27997.0,27993.0,0.004]
[1680534769190,0.051237,27996.0,27990.0,0.00018]
[1680534769429,0.17307481,27995.0,27990.0,0.00018]
[1680534769661,0.038013,27994.0,27989.0,0.00018]
[1680534769887,0.25253981,27993.0,27989.0,0.00018]
[1680534770119,0.0775,27990.0,27989.0,0.00018]
[1680534770353,0.116103,27990.0,27989.0,0.00018]
[1680534770591,0.108958,27990.0,27989.0,0.00018]
[1680534771260,0.135958,27990.0,27989.0,0.00018]
[1680534771512,0.108958,27990.0,27989.0,0.00018]
[1680534771754,0.28952511,27990.0,27988.0,66.31275817]
[1680534772005,3.18232843,27989.0,27988.0,65.24551088]
[1680534772253,3.18232843,27989.0,27988.0,64.76671354]
[1680534772254,4.32686243,27989.0,27988.0,64.76671354]
[1680534772485,4.86908823,27989.0,27988.0,64.69851354]
[1680534772947,4.29044823,27989.0,27988.0,64.69851354]
[1680534773450,4.51710679,27989.0,27988.0,64.69851354]
[1680534773675,4.79941754,27989.0,27988.0,64.69851354]
[1680534773928,4.82641754,27989.0,27988.0,64.69851354]
[1680534774383,4.59975898,27989.0,27988.0,64.02311298]
[1680534774605,4.83928886,27989.0,27988.0,64.02311298]
[1680534774829,6.76903939,27989.0,27988.0,64.02311298]
[1680534775046,6.30540121,27989.0,27988.0,64.02311298]
[1680534775499,6.30558021,27989.0,27988.0,64.02311298]
[1680534775720,4.37582968,27989.0,27988.0,64.02311298]
[1680534775942,4.35562968,27989.0,27988.0,64.0142481]
[1680534777089,6.28540106,27989.0,27988.0,64.0142481]
[1680534778049,6.8692586,27989.0,27988.0,64.0142481]
[1680534778276,6.40512296,27989.0,27988.0,64.0142481]
[1680534778507,4.63102392,27989.0,27988.0,64.0142481]
[1680534778731,4.15011316,27989.0,27988.0,64.0142481]
[1680534778962,4.28417368,27989.0,27988.0,64.0142481]
[1680534779193,4.25717368,27989.0,27988.0,64.0142481]
[1680534779896,6.21390939,27989.0,27988.0,64.0142481]
[1680534780350,6.47640693,27989.0,27988.0,64.0142481]
[1680534782742,9.26729428,27989.0,27988.0,47.25382401]
[1680534782968,9.26729428,27989.0,27988.0,46.65960201]
[1680534782969,9.09044758,27989.0,27988.0,46.65960201]
[1680534783200,8.99044758,27989.0,27988.0,46.65960201]
[1680534784108,9.27199734,27989.0,27988.0,45.98396981]
[1680534784601,8.47869649,27989.0,27988.0,45.88776807]
[1680534784831,7.97869649,27989.0,27988.0,45.88776807]
[1680534785056,7.94143482,27989.0,27988.0,45.88776807]
[1680534785322,8.81627182,27989.0,27988.0,45.88776807]
[1680534785523,8.33423683,27989.0,27988.0,45.88776807]
[1680534785753,7.91862655,27989.0,27988.0,45.88776807]
[1680534785972,7.89180655,27989.0,27988.0,45.88128807]
[1680534786197,7.87422707,27989.0,27988.0,45.88128807]
[1680534786433,6.9207473,27989.0,27988.0,45.88128807]
[1680534786665,6.35109655,27989.0,27988.0,45.88146807]
[1680534786893,6.23080931,27989.0,27988.0,45.88146807]
[1680534787352,6.48111332,27989.0,27988.0,45.88146807]
[1680534787571,6.8218909,27989.0,27988.0,45.88146807]
[1680534788008,7.1483909,27989.0,27988.0,45.88146807]
[1680534788297,6.38714931,27989.0,27988.0,45.88146807]
[1680534788519,7.2557073,27989.0,27988.0,45.88129748]
[1680534788749,6.61079792,27989.0,27988.0,45.09307182]
[1680534789179,6.63779792,27989.0,27988.0,45.09307182]
[1680534789419,6.61079792,27989.0,27988.0,45.09307182]
[1680534789634,6.63779792,27989.0,27988.0,45.09296123]
[1680534789865,7.32537792,27989.0,27988.0,45.05696123]
[1680534790080,7.07490931,27989.0,27988.0,45.05696123]
[1680534790300,7.29343419,27989.0,27988.0,45.05696123]
[1680534790528,7.06240431,27989.0,27988.0,45.05685064]
[1680534791002,7.08940431,27989.0,27988.0,45.05685064]
[1680534791233,7.06240431,27989.0,27988.0,45.05685064]
[1680534791475,7.16414656,27989.0,27988.0,45.05685064]
[1680534791698,4.31222376,27989.0,27988.0,45.05674005]
[1680534791917,4.46450815,27989.0,27988.0,45.05674005]
[1680534792193,4.46450815,27989.0,27988.0,44.49388013]
[1680534792194,4.27046095,27989.0,27988.0,44.49388013]
[1680534792412,4.29746095,27989.0,27988.0,44.49388013]
[1680534792631,4.38072924,27989.0,27988.0,44.49394954]
[1680534792853,4.35372924,27989.0,27988.0,44.49394954]
[1680534793101,4.35372924,27989.0,27988.0,44.55988902]
[1680534793102,3.66809756,27989.0,27988.0,44.55988902]
[1680534793365,2.51119756,27989.0,27988.0,44.55988902]
[1680534793587,2.51137756,27989.0,27988.0,44.55959843]
[1680534794026,2.53819756,27989.0,27988.0,44.55977843]
[1680534794280,2.51119756,27989.0,27988.0,44.55977843]
[1680534794495,2.51655656,27989.0,27988.0,44.55977843]
[1680534794727,2.53819756,27989.0,27988.0,44.55977843]
[1680534795174,2.51119756,27989.0,27988.0,44.55977843]
[1680534795396,2.53819756,27989.0,27988.0,44.55977843]
[1680534795645,2.51119756,27989.0,27988.0,44.55977843]
[1680534795913,2.53819756,27989.0,27988.0,44.55977843]
[1680534796133,2.83819756,27989.0,27988.0,44.55977843]
[1680534796584,2.85701753,27989.0,27988.0,44.55977843]
[1680534796802,2.83001753,27989.0,27988.0,44.55977843]
[1680534797023,2.85701753,27989.0,27988.0,44.55977843]
[1680534799062,1.27067943,27989.0,27988.0,44.75977843]
[1680534799284,0.52198743,27989.0,27988.0,44.94754243]
[1680534799773,0.41796501,27989.0,27988.0,44.97464343]
[1680534799995,0.43496501,27989.0,27988.0,44.97564343]
[1680534800713,0.41796501,27989.0,27988.0,44.97464343]
[1680534801382,0.41796501,27989.0,27988.0,44.98064343]
[1680534801383,0.41996501,27989.0,27988.0,44.98064343]
[1680534802491,0.41796501,27989.0,27988.0,44.97464343]
[1680534802716,0.41996501,27989.0,27988.0,44.98064343]
[1680534802935,0.56186182,27989.0,27988.0,44.78064343]
[1680534803165,0.86722082,27989.0,27988.0,44.56577843]
[1680534803389,0.91755758,27989.0,27988.0,44.56577843]
[1680534803881,0.77566077,27989.0,27988.0,44.56577843]
[1680534803883,0.75795801,27989.0,27988.0,44.04942754]
[1680534804122,1.85595801,27989.0,27988.0,44.04342754]
[1680534804353,1.88295801,27989.0,27988.0,44.04342754]
[1680534804583,1.91961664,27989.0,27988.0,44.04331695]
[1680534805256,0.99109664,27989.0,27988.0,44.04331695]
[1680534805498,0.51425764,27989.0,27988.0,44.61565857]
[1680534805739,0.48162364,27989.0,27988.0,44.04338636]
[1680534805971,0.54083564,27989.0,27988.0,44.04338636]
[1680534806197,0.54083564,27989.0,27988.0,44.24338636]
[1680534806432,0.51383564,27989.0,27988.0,44.24338636]
[1680534806658,0.45917701,27989.0,27988.0,44.04338636]
[1680534807110,0.45017701,27989.0,27988.0,44.10932584]
[1680534807328,0.46617701,27989.0,27988.0,44.04338636]
[1680534807573,0.75553601,27989.0,27988.0,44.04338636]
[1680534807807,0.77153601,27989.0,27988.0,44.04338636]
[1680534808469,0.78941877,27989.0,27988.0,44.10932584]
[1680534808705,2.11581765,27989.0,27988.0,44.04320636]
[1680534808967,2.14281765,27989.0,27988.0,44.04320636]
[1680534809203,2.24960204,27989.0,27988.0,44.04320636]
[1680534809431,2.27660204,27989.0,27988.0,44.04320636]
[1680534809672,2.27660204,27989.0,27988.0,44.04309577]
[1680534809673,2.45524204,27989.0,27988.0,44.04309577]
[1680534810153,4.92496119,27989.0,27988.0,44.04309577]
[1680534810387,2.96798924,27989.0,27988.0,44.04309577]
[1680534810612,2.96798924,27989.0,27988.0,44.04298518]
[1680534810613,3.33364218,27989.0,27988.0,44.04298518]
[1680534811300,5.09207635,27989.0,27988.0,44.0031225]
[1680534811561,5.26361635,27989.0,27988.0,44.0031225]
[1680534811788,6.06131358,27989.0,27988.0,44.00301191]
[1680534812036,6.04343082,27989.0,27988.0,43.44008212]
[1680534812256,6.67409946,27989.0,27988.0,43.44008212]
[1680534812489,7.00998059,27989.0,27988.0,43.44008212]
[1680534812713,6.69054083,27989.0,27988.0,43.43997153]
[1680534812946,6.41354083,27989.0,27988.0,43.43997153]
[1680534813175,7.19100944,27989.0,27988.0,42.76443653]
[1680534813642,6.79090944,27989.0,27988.0,42.76432594]
[1680534814578,6.79090944,27989.0,27988.0,42.76421535]
[1680534814804,6.92496996,27989.0,27988.0,42.75507535]
[1680534815024,7.26560785,27989.0,27988.0,42.75507535]
[1680534815269,17.24040785,27989.0,27988.0,42.75507535]
[1680534815739,17.06176785,27989.0,27988.0,42.75496476]
[1680534815967,15.92726708,27989.0,27988.0,42.74173134]
[1680534816195,15.36316058,27989.0,27988.0,42.74173134]
[1680534816455,15.36298058,27989.0,27988.0,42.74191134]
[1680534816676,15.36316058,27989.0,27988.0,42.74162075]
[1680534816897,15.36298058,27989.0,27988.0,42.74180075]
[1680534817121,16.32998059,27989.0,27988.0,42.74180075]
[1680534817340,16.6428259,27989.0,27988.0,42.74180075]
[1680534817561,16.62512314,27989.0,27988.0,42.74151016]
[1680534817773,16.65212314,27989.0,27988.0,42.74151016]
[1680534817995,16.6428259,27989.0,27988.0,42.74169016]
[1680534818218,16.6698259,27989.0,27988.0,42.74169016]
[1680534818445,16.9212331,27989.0,27988.0,42.74169016]
[1680534818665,16.9214131,27989.0,27988.0,42.74139957]
[1680534819182,18.20808512,27989.0,27988.0,42.74139957]
[1680534819408,17.61701333,27989.0,27988.0,42.74139957]
[1680534819635,17.61701333,27989.0,27988.0,42.74128898]
[1680534820561,17.59001333,27989.0,27988.0,42.74117839]
[1680534820796,17.67029175,27989.0,27988.0,42.45520533]
[1680534821027,20.11994585,27989.0,27988.0,41.59423505]
[1680534821223,20.42270854,27989.0,27988.0,41.59423505]
[1680534821487,20.64937555,27989.0,27988.0,41.59423505]
[1680534821710,20.67637555,27989.0,27988.0,41.59412446]
[1680534821935,20.67637555,27989.0,27988.0,41.56315446]
[1680534822151,20.64937555,27989.0,27988.0,41.56315446]
[1680534822367,20.67637555,27989.0,27988.0,41.56315446]
[1680534822586,21.5901928,27989.0,27988.0,41.56304387]
[1680534823085,22.2901928,27989.0,27988.0,41.56304387]
[1680534823301,22.2631928,27989.0,27988.0,40.88740659]
[1680534823514,22.3689621,27989.0,27988.0,40.88240659]
[1680534823734,22.3689621,27989.0,27988.0,40.870696]
[1680534823955,21.8959621,27989.0,27988.0,40.870696]
[1680534824186,21.8689621,27989.0,27988.0,40.870696]
[1680534824424,21.8959621,27989.0,27988.0,40.86623917]
[1680534824643,21.8689621,27989.0,27988.0,40.86623917]
[1680534824833,21.8959621,27989.0,27988.0,40.86623917]
[1680534825084,21.8689621,27989.0,27988.0,40.86623917]